Cogmind - Beta 16 --- EXPLORER MODE // 2026.01.22 @ 11:33:56 Player: K.K.Y. Result: Destroyed by NV-5PM(R) with Subdweller Laser Performance ------------- Evolutions (0) 0 Regions Visited (3) 600 Robots Destroyed (34) 170 Value Destroyed (680) 680 Prototype IDs (1) 20 Alien Tech Used (0) 0 Bonus (-89) -89 TOTAL SCORE: 1381 Bonus ------- Follower Combat Kills 74 Friendly Fire -163 Cogmind --------- Core Integrity 0/250 Matter 300/300 Energy 10/100 System Corruption 0% Temperature Cool (6) Movement Core (450) Ox8 Location -10/Subcaves Parts ------- > --- POWER (1) -------- (None) > --- PROPULSION (2) --- (None) > --- UTILITY (3) ------ Large Storage Unit Sensor Array Improved Terrain Scanner > --- WEAPON (2) ------- Makeshift Laser Makeshift Axe > --- INVENTORY (15) --- Light Treads Light Treads Heat Sink Makeshift Microdissipator Network High-capacity Storage Unit ECM Suite Makeshift Thermal Plating Makeshift Hacking Suite EM Shotgun EM Shotgun EM Shotgun EM Shotgun Mining Laser Multitool Peak State ------------ > --- POWER ------------ Ion Engine > --- PROPULSION ------- Makeshift Leg Makeshift Leg > --- UTILITY ---------- Large Storage Unit Sensor Array Makeshift Thermal Plating > --- WEAPON ----------- Improved Medium Laser Makeshift Laser > --- INVENTORY -------- Light Treads Light Treads Heat Sink Makeshift Microdissipator Network High-capacity Storage Unit Improved Terrain Scanner ECM Suite Makeshift Hacking Suite EM Shotgun EM Shotgun EM Shotgun EM Shotgun Mining Laser Multitool Makeshift Sword [Rating: 25] Favorites ----------- Power Ion Engine Engine Ion Engine Propulsion Light Treads Treads Light Treads Leg Makeshift Leg Utility Large Storage Unit Device Sensor Array Storage Large Storage Unit Protection Makeshift Thermal Plating Weapon Improved Medium Laser Energy Gun Improved Medium Laser Ballistic Gun Assault Rifle Special Weapon Mining Laser Slashing Weapon Makeshift Axe Build | -11 -10 -10 -10 ------- Run | Yrd Mat Min Sub Slots Evolved 1 | . 1 . . Power . | . . . . Propulsion . | . . . . Utility 1 | . 1 . . Weapon . | . . . . Parts Attached 24 | 7 6 . 11 Power 3 | 1 1 . 1 Engine 3 | 1 1 . 1 Core . | . . . . Reactor . | . . . . Propulsion 5 | 2 . . 3 Treads 3 | 2 . . 1 Leg 2 | . . . 2 Wheel . | . . . . Hover . | . . . . Flight . | . . . . Utility 7 | 2 2 . 3 Device 4 | 1 1 . 2 Storage 2 | 1 1 . . Processor . | . . . . Hackware . | . . . . Protection 1 | . . . 1 Artifact . | . . . . Weapon 9 | 2 3 . 4 Energy Gun 4 | . 3 . 1 Energy Cannon . | . . . . Ballistic Gun 3 | 2 . . 1 Ballistic Cannon . | . . . . Launcher . | . . . . Special Weapon 1 | . . . 1 Impact Weapon . | . . . . Slashing Weapon 1 | . . . 1 Piercing Weapon . | . . . . Special Melee Weapon . | . . . . Unidentified Prototypes 1 | . 1 . . Parts Lost 8 | . . . 8 Power 2 | . . . 2 Propulsion 3 | . . . 3 Utility 1 | . . . 1 Weapon 2 | . . . 2 Highest Loss Streak 3 | . . . 3 To Critical Strikes 1 | . . . 1 Average Backups 11 | . 8 10 13 Power . | . . . . Propulsion 1 | . . 1 1 Utility 4 | . 2 4 5 Weapon 5 | . 4 5 5 Tool/Special . | . . . . Unused Backups 10 | . . . 10 Power . | . . . . Propulsion . | . . . . Utility 4 | . . . 4 Weapon 5 | . . . 5 Tool/Special 1 | . . . 1 Average Slot Usage (%) 91 | . 91 93 90 Engine 7 | . 12 12 4 Treads 11 | . 17 18 6 Leg 10 | . . . 17 Device 24 | . 23 25 24 Storage 12 | . 12 12 12 Energy Gun 20 | . 24 25 18 Special Weapon 3 | . . . 5 Peak Build Rating 25 | 7 13 13 25 Average Rating 16 | 5 12 12 19 On Entrance 8 | . 7 12 13 Avg Prop Armor Cover (%) 9 | . . . 9 Naked Turns . | . . . . Heaviest Build 36 | 18 33 33 36 Greatest Support 40 | 40 40 40 40 Greatest Overweight (x) 10 | . 1 1 10 Average Overweight (x) . | . . . . Largest Inventory Capacity 15 | 10 15 15 15 Average Capacity 14 | 9 13 15 15 Most Carried 15 | 5 10 10 15 Average Carried 11 | . 8 9 13 Final Capacity 15 | 10 15 15 15 Final Carried 14 | 2 10 10 14 Class Distribution -------------------- 100% | Hacker-Mutant Dominant Class ---------------- Hacker-Mutant | -10/Materials Hacker-Mutant | -10/Mines Hacker-Mutant | -10/Subcaves Resources | -11 -10 -10 -10 ----------- Run | Yrd Mat Min Sub Matter Collected 600 | 330 80 10 180 Remotely . | . . . . Salvage Created 920 | 151 321 26 422 Parts 70 | 12 27 3 28 Haulers Intercepted 1 | . 1 . . Recyclers Shooed . | . . . . Parts Field Recycled . | . . . . Retrieved Matter . | . . . . Parts Self-Destructed . | . . . . Prevented . | . . . . Parts Restored . | . . . . Kills | -11 -10 -10 -10 ------- Run | Yrd Mat Min Sub Combat Hostiles Destroyed 20 | . 8 2 10 Guns 20 | . 8 2 10 Classes Destroyed 9 | 2 4 . 3 Tunneler 5 | 4 1 . . Hauler 1 | . 1 . . Recycler 1 | 1 . . . Turret 1 | . . . 1 Watcher 3 | . 3 . . Swarmer 8 | . 4 2 2 Grunt 4 | . 4 . . Subdweller 8 | . . . 8 Zionite 3 | . . . 3 Best Kill Streak 3 | 2 3 2 3 Combat Bots Only 3 | . 2 2 3 Max Kills in Single Turn 1 | 1 1 1 1 Gunslinging . | . . . . Exploded . | . . . . Melee . | . . . . Uniques/NPCs Destroyed . | . . . . Combat | -11 -10 -10 -10 -------- Run | Yrd Mat Min Sub Hostile Shots Fired 124 | . 23 6 95 Missed 36 | . 8 4 24 Hits 88 | . 15 2 71 Projectile 88 | . 15 2 71 AOE 2 | . . . 2 Critical Strikes 2 | . . . 2 Damage Taken 993 | . 95 9 889 Core 255 | . 10 3 242 Absorbed by Shields . | . . . . Ignored by Resistances 618 | . 64 7 547 Core Remaining (%) 100 | 100 . . . Volleys Fired 128 | 10 20 3 95 Largest 2 | 2 2 2 2 Hottest 206 | 40 112 112 206 Shots Fired 213 | 20 40 6 147 Gun 171 | 20 40 6 105 Cannon . | . . . . Launcher . | . . . . Special 42 | . . . 42 Kinetic 20 | 20 . . . Thermal 193 | . 40 6 147 Explosive . | . . . . Electromagnetic . | . . . . Robot Hit Streak 25 | 8 21 4 25 Robot Miss Streak 2 | 1 1 1 2 Penetration Max . | . . . . Secondary Targets 2 | . 1 1 . Max Gunslinging Chain 1 | . 1 1 . Shots Hit Robots 134 | 14 33 4 83 Core Hits 45 | 6 14 2 23 Critical Kills . | . . . . Critical Parts Destroyed 1 | 1 . . . Critical Strikes 11 | 1 3 . 7 Burn 10 | . 3 . 7 Destroy 1 | 1 . . . Melee Attacks 3 | . . . 3 Impact . | . . . . Slashing 3 | . . . 3 Piercing . | . . . . Sneak Attacks . | . . . . Combat Hostiles . | . . . . Follow-up Attacks . | . . . . Damage Inflicted 2195 | 182 562 68 1383 Guns 2129 | 182 557 68 1322 Cannons . | . . . . Explosions . | . . . . Melee 61 | . . . 61 Ramming 5 | . 5 . . Kinetic 182 | 182 . . . Thermal 1947 | . 557 68 1322 Explosive . | . . . . Electromagnetic . | . . . . Impact . | . . . . Slashing 61 | . . . 61 Piercing . | . . . . Highest Corruption . | . . . . Average Corruption . | . . . . Corruption Purged . | . . . . Corruption Blocked . | . . . . Overload Shots 1 | . . . 1 Overflow Damage . | . . . . Projectiles . | . . . . Explosions . | . . . . Melee . | . . . . Knockbacks . | . . . . Impact . | . . . . Kinetic . | . . . . Secondary . | . . . . Self-Inflicted Damage . | . . . . Shots . | . . . . Rammed 1 | . 1 . . Targets Rammed 1 | . 1 . . Kicked . | . . . . Crushed . | . . . . Highest Temperature 354 | . 354 63 75 Average Temperature 63 | . 89 32 11 Received Heat Transfer 432 | . 60 . 372 Siege Activations . | . . . . Martial Activations . | . . . . Shielding Activations . | . . . . Robots Disrupted . | . . . . Combat Hostiles . | . . . . Robots Corrupted . | . . . . Combat Hostiles . | . . . . Parts Fried . | . . . . Impact Corruptions . | . . . . Robots Melted . | . . . . Combat Hostiles . | . . . . Parts Melted 7 | . 3 . 4 Heat Transferred 4983 | . 1443 148 3392 Parts Sabotaged . | . . . . Parts Stolen . | . . . . Parts Stripped . | . . . . Power Chain Reactions . | . . . . Alert | -11 -10 -10 -10 ------- Run | Yrd Mat Min Sub Maximum Alert Level . | . . . . Low Security (%) 100 | 100 100 100 . Level 1 . | . . . . Level 2 . | . . . . Level 3 . | . . . . Level 4 . | . . . . Level 5 . | . . . . High Security . | . . . . Max Security . | . . . . Peak Influence 64 | 10 64 51 . Initial . | . . . . Average 3 | . 5 1 . Influence Increases 471 | 25 230 51 165 Destroy 0b10 Robot/C 320 | . 160 40 120 Destroy 0b10 Robot/NC 50 | 25 25 . . Destroy Leader 48 | . 38 10 . Allied During Kill 1 | . . 1 . Successful Hack 2 | . 2 . . Disable Machine 4 | . 4 . . Destroy Structure 1 | . 1 . . Lose Combat Pursuer 45 | . . . 45 Influence Decreases 471 | 25 230 51 165 Time Decay 431 | 25 230 51 125 Lost Part 20 | . . . 20 Lost Ally 20 | . . . 20 Squads Dispatched . | . . . . Investigation . | . . . . Extermination . | . . . . Reinforcement . | . . . . Assault . | . . . . Garrison . | . . . . Intercept . | . . . . Searches Triggered . | . . . . Construction Impeded . | . . . . Haulers Reinforced . | . . . . Active Scanning Responses . | . . . . Cargo Convoy Interrupts . | . . . . Stealth | -11 -10 -10 -10 --------- Run | Yrd Mat Min Sub Distress Signals . | . . . . Communications Jammed . | . . . . Distress Signals . | . . . . Times Spotted 29 | . 10 2 17 Peak Tracking Total 4 | . 2 1 4 Tactical Retreats 2 | . . . 2 Traps | -11 -10 -10 -10 ------- Run | Yrd Mat Min Sub Traps Triggered 1 | . 1 . . Indirectly . | . . . . Trap Hack Attempts . | . . . . Triggered . | . . . . Disarmed . | . . . . Reprogrammed . | . . . . Reused . | . . . . Traps Extracted . | . . . . Installed . | . . . . Triggered . | . . . . Machines | -11 -10 -10 -10 ---------- Run | Yrd Mat Min Sub Machines Disabled 2 | . 1 . 1 Max in Single Turn 1 | . 1 . 1 Machines Repaired . | . . . . Machines Dismantled . | . . . . Machines Sabotaged . | . . . . Overloaded Fab Kills . | . . . . Hacking | -11 -10 -10 -10 --------- Run | Yrd Mat Min Sub Machines Accessed 8 | . 7 . 1 Terminals 6 | . 6 . . Fabricators . | . . . . Repair Stations . | . . . . Recycling Units 1 | . 1 . . Scanalyzers . | . . . . Garrison Access . | . . . . Total Hacks 18 | . 14 . 4 Successful 15 | . 11 . 4 Failed 3 | . 3 . . Catastrophic . | . . . . Database Lockouts . | . . . . Manual 8 | . 8 . . Terminals 13 | . 13 . . Fabricators . | . . . . Repair Stations . | . . . . Recycling Units 1 | . 1 . . Scanalyzers . | . . . . Garrison Access . | . . . . Terminal Hacks 8 | . 4 . 4 Record 4 | . . . 4 Robot Analysis 2 | . 2 . . Locate Traps 2 | . 2 . . Fabricator Hacks . | . . . . Repair Station Hacks . | . . . . Recycling Unit Hacks 1 | . 1 . . Retrieve Components 1 | . 1 . . Scanalyzer . | . . . . Garrison Access Hacks . | . . . . Unauthorized Hacks 6 | . 6 . . Terminals 6 | . 6 . . Botnet 6 | . 6 . . Fabricators . | . . . . Repair Stations . | . . . . Recycling Units . | . . . . Scanalyzers . | . . . . Garrison Access . | . . . . Data Cores Recovered . | . . . . Used . | . . . . Hacking Detections 4 | . 4 . . Full Trace Events 1 | . 1 . . Feedback Events . | . . . . Feedback Blocked . | . . . . Robot Schematics Acquired . | . . . . Robots Built . | . . . . Authchips . | . . . . Time . | . . . . Total Robot Build Rating . | . . . . Part Schematics Acquired . | . . . . Parts Built . | . . . . Authchips . | . . . . Time . | . . . . Total Part Build Rating . | . . . . Part Studies Acquired . | . . . . Parts Repaired . | . . . . Time . | . . . . Parts Recycled . | . . . . Recycled Matter . | . . . . Retrieved Matter . | . . . . Retrieved Components 3 | . 3 . . Parts Scanalyzed . | . . . . Part Schematics Acquired . | . . . . Parts Damaged . | . . . . Bothacking | -11 -10 -10 -10 ------------ Run | Yrd Mat Min Sub Used RIF Installer . | . . . . Robots Hacked . | . . . . Non-combat . | . . . . Combat . | . . . . Robot Hacks Applied . | . . . . Relay Couplers Released . | . . . . Fabnet Peak Effective % . | . . . . Robots Rewired . | . . . . Allies Hacked . | . . . . Hacks Repelled . | . . . . Allies | -11 -10 -10 -10 -------- Run | Yrd Mat Min Sub Total Allies 2 | . . 2 . Largest Group 2 | . . 2 2 Highest-Rated Group 38 | . . 38 38 Highest-Rated Ally 31 | . . 31 31 Total Orders . | . . . . Ally Attacks 24 | . . . 24 Total Damage 313 | . . . 313 Kills 5 | . . . 5 Allies Corrupted . | . . . . Allies Melted . | . . . . Intel | -11 -10 -10 -10 ------- Run | Yrd Mat Min Sub Active Infowar (turns) 6589 | 129 1391 1126 3943 Sensors 3893 | . . . 3893 Terrain 2519 | . . . 2519 Structural 3852 | 129 1391 1126 1206 Robot Analysis Total 2 | . 2 . . Derelict Logs Recovered . | . . . . Drone Launches . | . . . . Drone Recoveries . | . . . . Exploration | -11 -10 -10 -10 ------------- Run | Yrd Mat Min Sub Turns Passed 6613 | 153 1391 1126 3943 Spaces Moved 2324 | 87 647 517 1073 Core 28 | 27 . . 1 Treads 1655 | 60 647 517 431 Legs 641 | . . . 641 Wheels . | . . . . Hover . | . . . . Flight . | . . . . Fastest Speed 50 | 50 160 160 140 Average Speed 187 | 125 199 192 182 Slowest Speed 550 | 160 240 240 550 Overloaded Moves . | . . . . Propulsion Burnouts . | . . . . Robots Hopped . | . . . . Potential Cave-ins . | . . . . Cave-ins Triggered . | . . . . Exploration Rate (%) 59 | 4 96 100 38 Regions Visited 3 Branch Regions 2 Pre-discovered Areas 2 | . . . 2 Known Exits Taken 3 | 1 1 1 . Unknown Exits Taken . | . . . . Scrap Searched 6 | . . . 6 Spaces Dug . | . . . . Terrain Destroyed 1 | . . . 1 Melee . | . . . . Projectile 1 | . . . 1 AOE . | . . . . Terrain Rammed . | . . . . Walls Destroyed . | . . . . Machines Disabled . | . . . . Actions | -11 -10 -10 -10 --------- Run | Yrd Mat Min Sub Total 4286 | 110 711 644 2821 Wait 1756 | . 14 123 1619 Move 2321 | 86 646 516 1073 Hop . | . . . . Pick Up 30 | 7 15 1 7 Fast Attach 6 | 2 . . 4 Attach 14 | 5 4 1 4 Detach 4 | . 2 . 2 Swap 15 | . 4 . 11 Drop 7 | . 5 . 2 Fire 128 | 10 20 3 95 Melee 3 | . . . 3 Ram . | . . . . Kick . | . . . . Crush 1 | . 1 . . Escape Stasis . | . . . . Rewire 1 | . . . 1 Trap . | . . . . Miscellaneous . | . . . . Route ------- -11/Scrapyard -10/Materials (discovered 5 exits: *Mat x3 / *Min / *Sub) -10/Mines (discovered 3 exits: *Mat x2 / *Sub) -10/Subcaves (discovered 2 exits: *Mat / *Rec) History --------- Turn | Location | Event 5 | -11/Scrapyard | Identified exit to Materials 5 | -11/Scrapyard | Discovered exit to Materials (range 15) 154 | -11/Scrapyard | Entered Materials 154 | -10/Materials | Evolved 1 slot: Utility x1 246 | -10/Materials | Identified exit to Subcaves 246 | -10/Materials | Discovered exit to Subcaves (range 12) 334 | -10/Materials | Build established: Hacker-Mutant 423 | -10/Materials | Identified exit to Mines 423 | -10/Materials | Discovered exit to Mines (range 7) 713 | -10/Materials | Identified exit to Materials 713 | -10/Materials | Discovered exit to Materials (range 15) 1019 | -10/Materials | Discovered exit to Materials (range 10) 1315 | -10/Materials | Discovered exit to Materials (range 3) 1545 | -10/Materials | Entered Mines 1826 | -10/Mines | Discovered exit to Materials (range 14) 1849 | -10/Mines | Received a Rocket Launcher from a helpful Derelict 1882 | -10/Mines | Discovered exit to Subcaves (range 6) 2157 | -10/Mines | Discovered exit to Materials (range 12) 2671 | -10/Mines | Entered Subcaves 2671 | -10/Subcaves | Accompanied by 2 allies 2672 | -10/Subcaves | Approached by a straggling Scientist 2676 | -10/Subcaves | Led the pair of lost Derelicts to an unsafe place 3241 | -10/Subcaves | A swath of the cavern ceiling suddenly collapsed 3383 | -10/Subcaves | Visited Clippyterm 3388 | -10/Subcaves | Learned location of Deep Caves (-7) 3541 | -10/Subcaves | Shifting Twisted Machinery released Sub. Beam Cannon 3594 | -10/Subcaves | Identified exit to Recycling 3594 | -10/Subcaves | Discovered exit to Recycling (range 13) 3616 | -10/Subcaves | Shifting Twisted Machinery released Mak. Sword 3757 | -10/Subcaves | Learned location of Zion (-7) 3757 | -10/Subcaves | Met a Zionite searching for "candidates" 3858 | -10/Subcaves | Disturbed a concealed Subdweller 3866 | -10/Subcaves | Core integrity fell below 50% 3867 | -10/Subcaves | Disturbed a concealed Subdweller 3867 | -10/Subcaves | Disturbed a concealed Subdweller 3985 | -10/Subcaves | A swath of the cavern ceiling suddenly collapsed 6531 | -10/Subcaves | Shifting Twisted Machinery released Mak. Axe 6542 | -10/Subcaves | Shifting Twisted Machinery released Sub. Beam Cannon 6546 | -10/Subcaves | Identified exit to Materials 6546 | -10/Subcaves | Discovered exit to Materials (range 12) 6590 | -10/Subcaves | Core integrity fell below 20% 6614 | -10/Subcaves | Destroyed by NV-5PM(R) with Subdweller Laser Last Messages --------------- here" 4H-C9X(c): "I think it's somewhere south of here" 4H-C9X(c): "I think it's somewhere southwest of here" 4H-C9X(c): "I think it's somewhere west of here" Mak. Axe falls loose from the Twisted Machinery. Sub. Beam Cannon falls loose from the Twisted Machinery. 06546_ EXIT=FOUND: MATERIALS 4H-C9X(c): "I think it's somewhere west of here" 06550_ Dropped Mak. Sword. 06550_ Acquired Mak. Axe. 06557_ 38-5HE(R) destroyed. 06568_ Acquired 10 matter. 06585_ Imp. Medium Laser destroyed. 06587_ Mak. Leg destroyed. 4H-C9X(c): "I think it's somewhere northwest of here" 06602_ Acquired 10 matter. Map ----- +----------------------------------------------------+ | #### ##????## ### % ###?? | | #### ##?#??### "" # # ###??? | | ##### ##????## % " ### # ###??? | | ##### ##????#### ### " ### # ##???? | | ###### ###????######### ## #### ##???? | | ##?#########??????######## ######### "###???? | | ####??######?????????????############## #####???? | | ####??????????????????????#####"""### ####????? | | ##?? ????????????????????????##"" ## ###????? | | ?????????????????????????????##"X ###????? | | ?????????????????????????#??###"" ## ###???? | | ??????????????????#??????????##"""## ####??? | | ?????????????????????????????####### ###?## | | ??????????????????????#??#???####### ##??? | | ??????????????????#???????????????## #####??? | | ?????????????????#????????????????## #######??? | | ?????????????????????????#???#????### ######???? | | ?????????????#???????????????#?#??### ### ###??? | | ???????????????????????????#??????### ###??? | | ?????????????????????????????#?????## ##??? | | ???????????#????????####???#??????### ####? | | ????????????????????? "#?????????### ###?? | | ????????????????????]""" ########### ##?? | | ????????????????????""" "## ## #### ##?? | | ??????????????????#?????#"[ " ###?? | | ??????????????????????###@ " c ####?? | | ??????????????????????# ! */## ### ####??? | | ???????????????"< $ !R######## ### #####???? | | ??????????????## "###"" ;##????### ## ####?#??? | | ????????????????????#####???#??## ## ##?????? | | ???????????#??#???????????#????## ### ###?????? | | ???????????????????????????????## #### ###????? | | ??????????????##??????#???????### ### ####????? | | ??????????????????????##???????## ?### ####???? | | ???????????????????????#???????## #?## ######? | | ?????????????????????????????#?? ??### #####? | | ???????????????????????????????? ??#### ##? | | ??????????????????????????#????? ??##### ###? | | ???????????????????????????????? ?###### #####? | | ???????????????????????????????#?#?### #####?? | | ????????????????????????????#????#### ###???? | | ???????????????????????#???????????#### ###???? | | ???????????????????????????????????#### ###???? | | ?????????????????????????????????###### ##???? | | ??????????????????????????????######## ###???? | | ??????????????????????????????##### ####???? | | ??????????????????????????????## #######??? | | ??????????????????????????????### ###########?? | | ??????????????????????????????### #######"###?? | | ???????????????????????????????#### #######""##?? | +----------------------------------------------------+ Best States ------------- Heat Dissipation 35 Energy Generation 10 Energy Capacity 250 Matter Stores 300 Matter Capacity 300 Sight Range 16 Robot Scan Range 14 Terrain Scan Range 16 Terrain Scan Density 10 Armor Coverage 100 Resistance: KI 35 Resistance: TH 45 Resistance: EX 35 Resistance: EM 35 Resistance: I 35 Resistance: S 35 Resistance: P 35 Evasion (%) 55 Recoil Reduction 2 Offensive Hacking 20 Item Schematics ----------------- None Robot Schematics ------------------ None Fabricated ------------ Nothing Repaired ---------- Nothing Studied --------- None Alien Tech Used ----------------- None Achievements -------------- None Challenges ------------ None Game ------ Seed BattleZhirovBrace Manual? 0 Play Time 00:19:23 Cumulative 301.2 hours Start 2026.01.22 @ 11:15:41 End 2026.01.22 @ 11:33:56 Sessions 1 Manual Loads 0 Difficulty Explorer Special Mode None Game No. 468 Rogue 0 Adventurer 0 Explorer 468 Win Type - Total 0 Types 0/0/0/0/0/0/0/0/0/0 Lore% 76 Gallery% 70 Achievement% 55 Wizard Run 0 Options --------- Layout 1 ASCII 0 Keyboard 0 Movement Mouse Keybinds 1 Fullscreen 1 Font 24/Smallcaps Map View 50x35 Zoom Use 0% Tactical HUD 1 Map Filters NONE Filters NONE Steam 1 RUN: a04c7ea1-1198-42ca-b1d9-8e31a3ac8623